bitfinex-derivatives/quotes_ETHF0:USTF0_20241104
["timestamp","ask_amount","ask_price","bid_price","bid_amount"]
[1730680075117,3.18681514,2450.4,2449.9,0.465]
[1730680075118,6.39461514,2450.4,2449.9,0.465]
[1730680075322,0.36747,2450.0,2449.9,0.465]
[1730680075620,0.3675,2449.9,2449.5,0.437]
[1730680075914,0.3675,2449.8,2449.7,0.3675]
[1730680076322,0.36752,2449.7,2449.6,0.79542]
[1730680077423,3.55432514,2449.8,2449.7,0.36752]
[1730680077722,0.36752,2449.7,2449.6,0.79542]
[1730680078421,0.36752,2449.7,2449.6,0.4279]
[1730680079020,0.36752,2449.7,2449.6,0.79543]
[1730680079324,0.36752,2449.7,2449.6,0.4279]
[1730680079520,0.36753,2449.6,2449.5,0.437]
[1730680079719,3.18681514,2449.6,2449.4,0.36755]
[1730680079928,0.36755,2449.5,2449.4,0.36755]
[1730680080323,0.36756,2449.4,2449.2,3.57538]
[1730680080623,3.18681514,2449.3,2449.2,3.57538]
[1730680081820,3.18681514,2449.5,2449.2,7.291]
[1730680082020,0.82102,2449.7,2449.6,0.36753]
[1730680082418,0.4535,2449.7,2449.6,0.36753]
[1730680082617,0.42,2449.9,2449.5,4.12667]
[1730680082818,3.55429514,2450.0,2449.9,0.36749]
[1730680083019,0.36749,2449.9,2449.8,0.36749]
[1730680083322,3.55428514,2450.0,2449.9,0.36749]
[1730680083514,3.18681514,2450.0,2449.9,0.36749]
[1730680083720,0.8782,2450.3,2449.6,1.34592]
[1730680083721,4.43245514,2450.3,2449.6,1.34592]
[1730680083919,4.43245514,2450.3,2449.7,0.91876]
[1730680084114,4.43245514,2450.3,2450.1,0.36745]
[1730680084525,4.06501514,2450.3,2450.1,0.36745]
[1730680085028,4.43245514,2450.3,2450.1,0.36745]
[1730680085418,4.43245514,2450.3,2450.2,0.36744]
[1730680085623,0.36745,2450.2,2450.1,0.36745]
[1730680086022,4.43244514,2450.3,2449.9,0.36749]
[1730680086223,4.06501514,2450.3,2450.2,0.36744]
[1730680087130,4.43244514,2450.3,2450.2,0.36744]
[1730680087631,4.06501514,2450.3,2450.2,0.36744]
[1730680087927,3.18681514,2450.3,2450.2,0.36744]
[1730680093436,0.36745,2450.2,2449.8,0.8919]
[1730680093635,0.36745,2450.2,2450.0,0.36746]
[1730680093933,0.36745,2450.2,2450.1,0.36746]
[1730680094239,3.55425514,2450.3,2450.1,0.36746]
[1730680094735,3.55425514,2450.3,2450.2,0.36744]
[1730680094935,3.18681514,2450.3,2450.2,0.36744]
[1730680100744,3.55424514,2450.3,2450.2,0.36744]
[1730680101241,0.36746,2450.1,2450.0,0.36746]
[1730680101643,0.81195,2450.2,2450.1,0.36746]
[1730680103644,0.36746,2450.1,2450.0,0.36746]
[1730680105436,0.81195,2450.2,2450.1,0.36746]
[1730680107849,0.4445,2450.2,2449.8,0.8919]
[1730680108046,0.36747,2450.1,2450.0,0.36746]
[1730680108240,0.36749,2450.0,2449.9,0.36748]
[1730680108448,0.83119,2450.0,2449.9,0.36748]
[1730680109948,0.4637,2450.0,2449.9,0.36748]
[1730680110547,0.83117,2450.0,2449.9,0.36748]
[1730680111645,0.36749,2449.9,2449.8,0.80219]
[1730680112348,0.36749,2449.9,2449.8,0.36749]
[1730680112946,0.36752,2449.7,2449.6,0.8525]
[1730680113155,3.18681514,2449.7,2449.3,0.8664]
[1730680113461,3.18681514,2449.7,2449.5,0.36754]
[1730680113462,0.36755,2449.6,2449.5,0.36754]
[1730680113749,3.18681514,2449.7,2449.3,1.3026]
[1730680113950,2.63693375,2449.9,2449.4,1.44887902]
[1730680114255,3.00439375,2450.1,2450.0,0.36747]
[1730680114459,0.36748,2450.0,2449.9,0.36748]
[1730680115151,2.63693375,2450.1,2449.8,0.4362]
[1730680115351,0.81109,2449.9,2449.8,0.80369]
[1730680116045,0.4436,2449.9,2449.8,0.80369]
[1730680116249,0.81109,2449.9,2449.8,0.80369]
[1730680116654,0.4436,2449.9,2449.8,0.80369]
[1730680117257,0.81109,2449.9,2449.8,0.80369]
[1730680117458,0.4436,2449.9,2449.8,0.80369]
[1730680118859,0.81109,2449.9,2449.8,0.80369]
[1730680119562,0.4436,2449.9,2449.8,0.80369]
[1730680121464,0.81109,2449.9,2449.8,0.80369]
[1730680122264,0.36752,2449.7,2449.6,0.36752]
[1730680123959,3.55433514,2449.7,2449.6,0.36752]
[1730680126060,3.55433514,2449.7,2449.3,1.3196]
[1730680126061,3.18681514,2449.7,2449.3,1.3196]
[1730680126371,0.36754,2449.6,2449.5,0.36753]
[1730680127467,3.00446375,2449.7,2449.6,0.36753]
[1730680127666,0.36753,2449.7,2449.6,0.36753]
[1730680130072,3.06823375,2449.8,2449.3,1.3196]
[1730680130269,0.36754,2449.6,2449.5,0.36753]
[1730680130567,0.36753,2449.7,2449.6,0.36753]
[1730680132669,0.4313,2449.8,2449.3,1.3196]
[1730680132871,0.79881,2449.8,2449.7,0.36752]
[1730680133271,0.4313,2449.8,2449.7,0.36752]
[1730680133568,6.63483889,2449.9,2449.8,0.3675]
[1730680135170,6.63483889,2449.9,2449.4,0.91891]
[1730680135171,2.63693375,2450.0,2449.6,3.2078]
[1730680135369,0.36747,2450.0,2449.9,0.36748]
[1730680139274,3.08493375,2450.1,2449.7,1.327]
[1730680139481,0.3675,2449.8,2449.7,1.6945]
[1730680140170,0.4625,2449.9,2449.7,1.327]
[1730680140377,0.4625,2449.9,2449.7,0.4551]
[1730680140378,0.3675,2449.8,2449.7,0.4551]
[1730680141085,0.36754,2449.6,2449.5,0.36754]
[1730680141279,0.36754,2449.6,2449.5,0.80654]
[1730680141474,0.80542,2449.7,2449.6,0.36753]
[1730680142286,0.4379,2449.7,2449.5,0.439]
[1730680142683,0.36753,2449.6,2449.5,0.80654]
[1730680142991,0.4379,2449.7,2449.5,0.439]
[1730680143284,0.4379,2449.7,2449.5,0.80653]
[1730680143285,0.36753,2449.6,2449.5,0.80653]
[1730680144373,7.2902,2449.6,2449.0,1.06178837]
[1730680144581,7.2902,2449.6,2449.3,0.36757]
[1730680144582,0.36757,2449.4,2449.3,0.36757]
[1730680144779,0.36758,2449.3,2449.2,0.82428]
[1730680145283,0.3676,2449.2,2449.1,0.36761]
[1730680145587,0.36758,2449.3,2449.2,0.36759]
[1730680145784,2.63693375,2449.4,2449.1,0.3676]
[1730680146079,2.63693375,2449.4,2449.3,0.36758]
[1730680146281,2.63693375,2449.4,2449.3,0.36757]
[1730680146282,0.36756,2449.4,2449.3,0.36757]
[1730680148087,3.06493375,2449.5,2449.2,0.36758]
[1730680148388,0.36758,2449.3,2449.2,0.36758]
[1730680148583,3.06493375,2449.5,2449.1,0.4612]
[1730680148786,0.36757,2449.4,2449.3,0.36757]
[1730680149490,0.428,2449.5,2449.1,0.4612]
[1730680149692,0.428,2449.5,2449.2,0.36758]
[1730680149886,0.36758,2449.3,2449.2,0.36758]
[1730680150984,0.36757,2449.4,2449.3,0.36757]
[1730680152095,0.36758,2449.3,2449.2,0.36758]
[1730680152293,3.06493375,2449.5,2449.1,0.4612]
[1730680152294,0.36757,2449.4,2449.1,0.4612]
[1730680152488,0.36758,2449.3,2449.2,0.36758]
[1730680152687,0.36757,2449.4,2449.2,0.36759]
[1730680153089,0.36757,2449.4,2449.1,0.4612]
[1730680153292,0.36757,2449.4,2449.2,0.36759]
[1730680153293,1.83858757,2449.4,2449.2,0.36759]
[1730680153594,0.36758,2449.3,2449.2,0.36759]
[1730680153787,1.83858757,2449.4,2449.1,0.4612]
[1730680154093,1.83858757,2449.4,2449.2,0.36758]
[1730680154094,0.36758,2449.3,2449.2,0.36758]
[1730680154296,1.83858757,2449.4,2449.2,0.36758]
[1730680154492,1.83858757,2449.4,2449.3,0.36758]
[1730680154694,1.83858757,2449.4,2449.1,0.4612]
[1730680154695,1.47101757,2449.4,2449.1,0.4612]
[1730680154890,0.36758,2449.3,2449.2,0.36758]
[1730680155890,0.36758,2449.3,2449.1,0.4612]
[1730680156096,0.36758,2449.3,2449.2,0.36759]
[1730680157292,1.47101757,2449.4,2449.1,0.4612]
[1730680157497,0.36759,2449.2,2449.1,0.8288]
[1730680161394,0.36765,2448.9,2448.8,0.36764]
[1730680161602,0.36765,2448.9,2448.8,0.81774]
[1730680164393,1.83866757,2448.9,2448.8,0.4501]
[1730680164598,0.36765,2448.8,2448.7,1.25706]
[1730680164797,1.83866757,2448.8,2448.7,1.25706]
[1730680166000,1.47101757,2448.8,2448.7,1.25706]
[1730680166200,1.83866757,2448.9,2448.8,0.36765]
[1730680166604,0.36765,2448.8,2448.7,1.25705]
[1730680166905,1.83865757,2448.9,2448.8,0.36765]
[1730680171109,1.47101757,2448.9,2448.6,0.4553]
[1730680171406,1.83867757,2448.8,2448.7,0.36766]
[1730680171810,0.36767,2448.7,2448.6,0.82297]
[1730680172514,0.82457,2448.7,2448.6,0.82297]
[1730680173709,1.47101757,2448.9,2448.6,0.4553]
[1730680173908,1.83863757,2449.1,2449.0,0.36762]
[1730680174503,1.47101757,2449.1,2449.0,0.36762]
[1730680175317,1.47101757,2449.2,2448.9,0.91908]
[1730680175510,1.92791757,2449.4,2449.3,0.36758]
[1730680175704,2.29547757,2449.4,2449.3,0.36758]
[1730680175907,2.29547757,2449.4,2449.0,1.3491]
[1730680176104,0.36758,2449.3,2449.2,0.36758]
[1730680176314,0.82447,2449.4,2449.2,0.36758]
[1730680176716,0.36759,2449.3,2449.1,0.36759]
[1730680176912,1.83860757,2449.3,2449.1,0.36761]
[1730680177219,1.83859757,2449.3,2449.2,0.36759]
[1730680177519,1.47101757,2449.3,2449.0,1.3491]
[1730680177716,0.36759,2449.2,2449.1,0.3676]
[1730680178214,1.47101757,2449.3,2449.2,0.36759]
[1730680178722,1.83859757,2449.3,2449.2,0.36759]
[1730680181806,1.47101757,2449.3,2449.2,0.36759]
[1730680183110,1.83859757,2449.3,2449.2,0.36759]
[1730680183819,1.47101757,2449.3,2449.2,0.36759]
[1730680184518,1.83859757,2449.3,2449.2,0.36759]
[1730680184814,1.83858757,2449.4,2449.3,0.36758]
[1730680185117,1.47101757,2449.4,2449.3,0.36758]
[1730680187920,1.83857757,2449.4,2449.3,0.36757]
[1730680188914,1.47101757,2449.4,2449.3,0.36757]
[1730680189919,2.63693375,2449.5,2449.2,1.47101757]
[1730680190215,4.10795132,2449.7,2449.6,0.36753]
[1730680190418,1.47101757,2449.7,2449.6,0.36753]
[1730680190624,1.83853757,2449.7,2449.6,0.36753]
[1730680193015,1.47101757,2449.8,2449.7,0.36752]
[1730680193418,2.63693375,2449.9,2449.8,0.3675]
[1730680193619,8.13343132,2450.0,2449.8,0.3675]
[1730680193917,8.13343132,2450.0,2449.9,0.4607]
[1730680194117,8.13343132,2450.0,2449.9,0.8877]
[1730680194326,5.49649757,2450.0,2449.9,1.25519]
[1730680194526,5.49649757,2450.0,2449.9,0.8877]
[1730680194822,5.49649757,2450.0,2449.4,2.84950757]
[1730680194823,5.12901757,2450.0,2449.4,1.93061757]
[1730680195021,1.83856757,2449.5,2449.4,0.4596]
[1730680195620,1.83856757,2449.5,2449.4,0.82716]
[1730680195621,1.47101757,2449.5,2449.4,0.82716]
[1730680195821,1.83856757,2449.5,2449.4,0.82716]
[1730680196523,1.83856757,2449.5,2449.4,0.4596]
[1730680197824,0.36756,2449.4,2449.3,0.427]
[1730680198028,0.36756,2449.4,2449.3,0.79458]
[1730680199324,5.3706088,2449.6,2449.4,0.36756]
[1730680199530,2.65545123,2449.6,2449.5,0.36755]
[1730680199726,2.65545123,2449.7,2449.6,0.36753]
[1730680200027,3.52485123,2449.8,2449.6,0.36752]
[1730680200230,0.36752,2449.7,2449.6,0.36752]
[1730680200629,3.52485123,2449.8,2449.6,0.36752]
[1730680200827,3.89236123,2449.8,2449.6,0.36752]
[1730680201028,3.89236123,2449.8,2449.5,0.4237]
[1730680201227,3.89236123,2449.8,2449.6,0.36752]
[1730680201625,3.52485123,2449.8,2449.6,0.36752]
[1730680201922,4.9958688,2449.8,2449.6,0.36752]
[1730680202121,5.3633788,2449.8,2449.7,0.36752]
[1730680202527,5.3633788,2449.8,2449.6,0.36752]
[1730680203025,4.9958688,2449.8,2449.6,0.36752]
[1730680203325,5.3633788,2449.8,2449.5,0.4237]
[1730680203527,2.65545123,2449.9,2449.8,0.3675]
[1730680203730,3.18654148,2450.2,2449.9,0.4316]
[1730680203731,2.65545123,2450.2,2449.9,0.4316]
[1730680203922,1.83843757,2450.4,2449.9,0.4316]
[1730680203923,2.65545123,2450.4,2450.3,0.36743]
[1730680204227,0.8479,2450.5,2450.4,0.36741]
[1730680204731,1.2153,2450.5,2450.3,0.36742]
[1730680204930,1.2153,2450.5,2450.1,3.2078]
[1730680205230,1.2153,2450.5,2449.9,0.4316]
[1730680205231,1.47101757,2450.3,2449.9,0.4316]
[1730680205421,1.47101757,2450.3,2450.0,0.36746]
[1730680205422,0.36745,2450.2,2450.0,0.36746]
[1730680205823,0.36745,2450.2,2449.9,0.4316]
[1730680206020,1.83845757,2450.3,2450.1,0.36744]
[1730680206333,1.83845757,2450.3,2449.9,0.4316]
[1730680206334,0.36746,2450.1,2449.9,0.4316]
[1730680206529,0.36746,2450.1,2450.0,0.36747]
[1730680207231,1.47101757,2450.3,2450.0,0.36747]
[1730680207428,0.36746,2450.1,2450.0,0.36747]
[1730680207621,0.36745,2450.2,2450.0,0.36747]
[1730680207837,0.36745,2450.2,2450.1,0.36746]
[1730680208033,1.83844757,2450.3,2449.9,0.4316]
[1730680208233,1.83844757,2450.3,2449.9,1.90261757]
[1730680208532,1.83844757,2450.3,2450.1,0.36744]
[1730680208735,0.36743,2450.3,2449.9,1.90261757]
[1730680208934,0.36743,2450.3,2450.1,0.36744]
[1730680209124,1.83843757,2450.4,2449.9,1.90261757]
[1730680209330,1.47101757,2450.4,2450.3,0.36743]
[1730680210035,0.8479,2450.5,2450.0,1.47101757]
[1730680210334,4.67881757,2450.6,2450.5,0.3674]
[1730680210335,3.2078,2450.6,2450.5,0.3674]
[1730680211938,0.36741,2450.5,2450.3,1.23482]
[1730680212129,1.47101757,2450.4,2449.8,3.2078]
[1730680212335,0.36746,2450.1,2449.9,0.36747]
[1730680212832,1.47101757,2450.2,2449.8,3.2078]
[1730680212833,0.4336,2450.0,2449.8,3.2078]
[1730680213133,2.27209757,2450.0,2449.8,0.36749]
[1730680213339,0.4411,2449.9,2449.8,0.36749]
[1730680214438,0.80859,2449.9,2449.8,0.36749]
[1730680215346,0.4411,2449.9,2449.8,0.36749]
[1730680218240,0.80859,2449.9,2449.8,0.36749]
[1730680218749,0.4411,2449.9,2449.8,0.36749]
[1730680219236,0.80859,2449.9,2449.8,0.36749]
[1730680219836,0.4411,2449.9,2449.8,0.36749]
[1730680223541,0.80859,2449.9,2449.8,0.36749]
[1730680223739,0.4411,2449.9,2449.8,0.36749]
[1730680224839,3.2078,2450.1,2449.6,0.91882]
[1730680225038,2.65545123,2450.3,2450.2,0.36744]
[1730680225039,3.10455123,2450.3,2450.2,0.36744]
[1730680225639,0.4491,2450.3,2450.2,0.36744]
[1730680226139,0.81653,2450.3,2450.2,0.36744]
[1730680227939,0.36744,2450.2,2450.1,0.36744]
[1730680228142,0.36749,2449.9,2449.8,0.36749]
[1730680228337,0.4204,2450.1,2449.7,0.4378]
[1730680228537,0.78787,2450.1,2449.7,0.4378]
[1730680228738,0.78787,2450.1,2450.0,0.36747]
[1730680229237,0.36745,2450.2,2450.1,0.36746]
[1730680229435,3.2078,2450.3,2449.7,0.4378]
[1730680229641,3.47606123,2450.4,2450.3,0.36743]
[1730680229849,3.10865123,2450.4,2449.9,4.12652]
[1730680230047,0.36743,2450.3,2450.2,0.36743]
[1730680230243,3.47606123,2450.4,2450.3,0.36743]
[1730680230548,3.10865123,2450.4,2450.3,0.36743]
[1730680230747,2.65545123,2450.5,2450.4,0.36741]
[1730680233942,3.02285123,2450.5,2450.4,0.36741]
[1730680234449,2.65545123,2450.5,2450.4,0.36741]
[1730680234648,3.02285123,2450.5,2450.4,0.36741]
[1730680235747,3.2078,2450.6,2450.4,0.36741]
[1730680235946,0.36742,2450.4,2450.3,0.36742]
[1730680236749,0.36742,2450.4,2450.0,1.28067]
[1730680236750,5.5512023,2450.4,2450.0,1.28067]
[1730680236951,0.36746,2450.1,2450.0,0.9132]
[1730680237150,0.36746,2450.1,2450.0,0.4631]
[1730680237449,0.36747,2450.0,2449.9,3.2078]
[1730680237947,0.36747,2450.0,2449.9,3.57529]
[1730680238357,0.36747,2450.1,2449.9,3.57528]
[1730680238554,0.36744,2450.2,2449.9,3.57528]
[1730680238745,2.8039023,2450.3,2449.9,3.57528]
[1730680238746,0.36747,2450.0,2449.9,3.57528]
[1730680239456,1.3335,2450.3,2449.9,3.2078]
[1730680239746,0.36747,2450.0,2449.9,3.57528]
[1730680240247,0.36747,2450.0,2449.9,0.36748]
[1730680240456,0.36747,2450.1,2449.8,0.4606]
[1730680240656,0.36747,2450.1,2450.0,0.36747]
[1730680240952,0.36747,2450.1,2449.8,0.4606]
[1730680241249,1.3335,2450.3,2449.9,0.36748]
[1730680241449,0.36747,2450.0,2449.9,0.36748]
[1730680242545,0.36746,2450.1,2450.0,0.36746]
[1730680242951,7.19675123,2450.3,2449.8,0.4606]
[1730680242952,0.36747,2450.0,2449.9,0.36748]
[1730680243148,0.36749,2449.9,2449.8,0.82809]
[1730680243345,2.65545123,2450.2,2449.8,0.4606]
[1730680243553,0.36749,2449.9,2449.8,0.4606]
[1730680244255,0.36749,2449.9,2449.8,0.8281]
[1730680244444,2.65545123,2450.2,2449.8,0.4606]
[1730680244650,0.36748,2450.0,2449.9,0.36748]
[1730680245044,0.36749,2449.9,2449.8,0.82809]
[1730680245255,0.36749,2449.9,2449.8,0.4606]
[1730680245558,0.3675,2449.8,2449.7,0.81011]
[1730680245858,0.3675,2449.8,2449.7,0.36751]
[1730680246055,3.2078,2449.9,2449.6,0.4606]
[1730680246263,0.36755,2449.5,2449.4,1.26015]
[1730680246552,0.4482,2449.7,2449.4,1.26015]
[1730680246860,0.36755,2449.5,2449.4,1.26015]
[1730680248758,0.4482,2449.7,2449.4,0.8926]
[1730680249155,0.36755,2449.5,2449.4,1.26016]
[1730680249460,0.36756,2449.4,2449.3,0.4606]
[1730680249663,0.82146,2449.4,2449.3,0.4606]
[1730680250261,0.4539,2449.4,2449.1,3.38380466]
[1730680250467,0.79588,2449.3,2449.2,0.36759]
[1730680250954,0.4283,2449.3,2449.2,0.36759]
[1730680251357,0.79588,2449.3,2449.2,0.36759]
[1730680252353,0.4283,2449.3,2449.2,0.36759]
[1730680252761,0.82147,2449.4,2449.3,0.36758]
[1730680254457,0.82147,2449.4,2449.1,1.3331]
[1730680254657,0.82147,2449.4,2449.2,0.36758]
[1730680255054,0.82147,2449.4,2449.1,1.3331]
[1730680255258,0.82147,2449.4,2449.3,0.36758]
[1730680255460,0.82147,2449.4,2449.2,0.36758]
[1730680256167,0.36759,2449.3,2449.1,1.70069]
[1730680256464,0.4539,2449.4,2449.1,1.3331]
[1730680256665,0.36758,2449.3,2449.1,1.7007]
[1730680257553,0.36758,2449.3,2449.2,0.36759]
[1730680257955,0.82147,2449.4,2449.2,0.36758]
[1730680258258,0.36758,2449.3,2449.2,0.36758]
[1730680259062,0.36758,2449.3,2449.1,1.70069]
[1730680259259,0.36758,2449.3,2449.2,0.36759]
[1730680259566,0.36758,2449.3,2449.1,1.3331]
[1730680259567,0.82146,2449.4,2449.1,1.3331]
[1730680259862,0.82146,2449.4,2449.3,0.36758]
[1730680260064,2.65545123,2449.8,2449.2,0.91898]
[1730680260275,6.30705123,2449.9,2449.2,3.2078]
[1730680260567,0.36751,2449.8,2449.3,0.91895]
[1730680260766,3.6516,2449.9,2449.7,0.36752]
[1730680260958,0.3675,2449.8,2449.7,0.36752]
[1730680261157,0.3675,2449.8,2449.3,0.91895]
[1730680261357,0.3675,2449.8,2449.6,0.36752]
[1730680261558,0.3675,2449.8,2449.7,0.4432]
[1730680261769,0.3675,2449.8,2449.7,0.81072]
[1730680261965,3.6516,2449.9,2449.7,0.4432]
[1730680262269,3.6516,2449.9,2449.8,0.3675]
[1730680262270,4.01909,2449.9,2449.8,0.3675]
[1730680262471,4.01909,2449.9,2449.8,0.8438]
[1730680263369,0.3675,2449.8,2449.7,0.4432]
[1730680264277,3.6516,2449.9,2449.5,0.36753]
[1730680264564,0.3676,2449.2,2448.8,4.27720241]
[1730680264776,3.2078,2449.3,2449.0,1.22581]
[1730680265072,0.36761,2449.1,2449.0,0.8582]
[1730680265573,0.36761,2449.1,2449.0,1.22582]
[1730680265764,0.36761,2449.1,2449.0,0.8582]
[1730680265957,3.2078,2449.3,2448.8,3.57544]
[1730680266164,0.4282,2449.0,2448.8,3.57545]
[1730680266462,0.79583,2449.0,2448.8,3.57545]
[1730680266864,0.36764,2448.9,2448.8,3.57545]
[1730680267760,0.36764,2448.9,2448.8,0.36765]
[1730680267960,0.79583,2449.0,2448.9,0.36764]
[1730680268560,0.36764,2448.9,2448.7,0.81315]
[1730680269171,0.4574,2448.9,2448.7,0.4455]
[1730680269369,0.36765,2448.8,2448.7,0.4455]
[1730680269570,0.36765,2448.8,2448.7,0.81317]
[1730680269874,0.36765,2448.8,2448.7,0.4455]
[1730680270072,0.36765,2448.8,2448.7,0.81317]
[1730680270467,0.36765,2448.8,2448.7,0.4455]
[1730680272173,0.36768,2448.6,2448.5,0.79869]
[1730680272368,0.36768,2448.6,2448.5,1.22799]
[1730680272867,0.36768,2448.6,2448.5,0.8603]
[1730680273063,7.27057818,2448.6,2447.9,3.2078]
[1730680273263,3.2078,2448.2,2447.9,0.82748]
[1730680273468,0.36777,2448.0,2447.9,0.4597]
[1730680273667,0.79976,2448.1,2448.0,0.36777]
[1730680274168,0.79976,2448.1,2447.9,0.889]
[1730680274365,0.432,2448.1,2447.9,0.889]
[1730680274681,3.2078,2448.2,2448.1,0.36775]
[1730680274682,0.36774,2448.2,2448.1,0.36775]
[1730680274975,0.36774,2448.3,2448.1,0.36775]
[1730680275177,0.36775,2448.2,2448.0,0.36776]
[1730680275477,0.8609,2448.4,2448.1,0.36776]
[1730680275478,0.36773,2448.3,2448.1,0.36776]
[1730680276070,0.8609,2448.4,2448.2,0.36773]
[1730680276271,0.36773,2448.3,2448.2,0.36773]
[1730680276474,1.22862,2448.4,2448.2,0.36773]
[1730680276969,1.22862,2448.4,2447.9,4.0968]
[1730680276970,0.8609,2448.4,2448.3,0.36773]
[1730680277173,1.22861,2448.4,2448.2,0.36773]
[1730680277371,0.8609,2448.4,2448.1,0.36775]
[1730680277570,0.36773,2448.3,2448.1,0.36774]
[1730680277768,0.36773,2448.3,2448.1,0.36775]
[1730680278368,7.27137818,2448.2,2447.1,1.06940241]
[1730680278567,0.36784,2447.6,2446.9,4.12762]
[1730680278766,1.25005,2447.5,2447.3,0.36787]
[1730680278973,0.8822,2447.5,2447.4,0.36786]
[1730680279273,0.4262,2447.5,2447.0,0.466]
[1730680279484,3.2078,2447.7,2447.6,0.36783]
[1730680279680,3.6638,2448.0,2447.9,0.36779]
[1730680279973,3.2078,2448.0,2447.9,0.36779]
[1730680280171,3.18657818,2448.2,2448.1,0.36776]
[1730680280371,3.18657818,2448.2,2448.0,0.36776]
[1730680280575,3.18657818,2448.2,2447.7,3.2078]
[1730680280576,3.2078,2448.3,2447.7,3.2078]
[1730680280777,3.2078,2448.3,2448.2,0.36774]
[1730680282181,3.2078,2448.8,2448.7,0.36767]
[1730680282576,0.4619,2449.0,2448.9,0.36764]
[1730680282887,0.4619,2449.0,2448.5,0.91925]
[1730680282888,0.4208,2449.2,2449.0,0.36762]
[1730680283273,0.4208,2449.2,2448.6,3.2078]
[1730680283773,0.7884,2449.2,2449.0,0.36761]
[1730680284075,0.36761,2449.1,2448.7,0.36767]
[1730680284376,0.36761,2449.1,2448.9,0.36763]
[1730680284584,8.68612114,2449.4,2448.6,6.39437818]
[1730680284781,8.68612114,2449.4,2449.3,0.36758]
[1730680284782,5.47832114,2449.4,2449.3,0.36758]
[1730680284976,0.79144,2449.6,2449.3,0.36758]
[1730680285379,0.4239,2449.6,2449.3,0.36758]
[1730680285580,0.4239,2449.6,2449.5,0.36755]
[1730680285883,3.2078,2449.7,2449.2,3.2078]
[1730680286080,3.2078,2449.7,2449.6,0.36753]
[1730680286277,3.57532,2449.7,2449.4,0.36755]
[1730680286477,0.36756,2449.4,2449.2,0.36759]
[1730680286780,3.2078,2449.7,2449.1,0.36759]
[1730680286974,3.2078,2449.7,2449.0,1.3427]
[1730680286975,0.36755,2449.5,2449.0,1.3427]
[1730680287483,3.2078,2449.7,2449.6,0.36753]
[1730680287683,3.2078,2449.7,2449.1,3.18657818]
[1730680287978,0.4465,2449.8,2449.2,3.2078]
[1730680288374,0.36752,2449.7,2449.4,0.36755]
[1730680288580,0.4465,2449.8,2449.2,3.2078]
[1730680288776,0.4465,2449.8,2449.6,0.36752]
[1730680289382,0.36749,2449.9,2449.6,0.36752]
[1730680289873,7.18575818,2450.0,2449.7,0.36751]
[1730680290073,3.61047818,2450.0,2449.2,3.2078]
[1730680290471,0.36751,2449.8,2449.5,0.36754]
[1730680290878,0.3675,2449.9,2449.2,3.2078]
[1730680291076,7.18575818,2450.0,2449.7,0.36751]
[1730680291276,0.36749,2449.9,2449.6,0.36753]
[1730680291579,6.81827818,2450.0,2449.2,3.2078]
[1730680291784,0.36749,2449.9,2449.6,0.36752]
[1730680291980,7.18575818,2450.0,2449.7,0.36751]
[1730680292286,3.6317,2450.0,2449.5,3.2078]
[1730680292580,3.6317,2450.0,2449.8,0.36749]
[1730680292788,3.2078,2450.0,2449.8,0.36749]
[1730680292979,3.57528,2450.0,2449.7,0.36751]
[1730680293286,0.36749,2449.9,2449.7,0.36751]
[1730680293485,0.36749,2449.9,2449.6,1.71902]
[1730680293884,0.3675,2449.8,2449.6,1.71902]
[1730680294086,0.3675,2449.8,2449.3,3.18657818]
[1730680294087,3.18657818,2449.8,2448.9,3.2078]
[1730680294380,3.18657818,2449.6,2449.0,1.3122]
[1730680294580,0.3676,2449.2,2449.0,1.67982]
[1730680294781,3.18657818,2449.3,2449.0,0.8669]
[1730680294989,0.36761,2449.1,2448.9,3.2078]
[1730680295181,0.36761,2449.1,2448.6,0.4453]
[1730680295182,3.2078,2449.1,2448.6,1.3122]
[1730680295384,0.36763,2449.0,2448.8,0.36765]
[1730680295690,3.2078,2449.1,2448.6,1.3122]
[1730680295889,3.57541,2449.1,2448.8,0.36764]
[1730680296085,3.57541,2449.1,2448.9,0.36763]
[1730680296290,3.57541,2449.1,2448.8,0.36764]
[1730680296984,0.4222,2449.2,2449.0,0.36761]
[1730680297182,0.36758,2449.3,2449.1,0.3676]
[1730680297483,0.36757,2449.4,2449.1,0.3676]
[1730680297692,3.6498,2449.5,2449.1,0.3676]
[1730680297905,3.6498,2449.5,2448.9,3.2078]
[1730680298285,4.01735,2449.5,2449.2,0.36758]
[1730680298486,0.36757,2449.4,2449.2,0.36758]
[1730680298785,0.36758,2449.3,2449.1,0.3676]
[1730680299387,4.01735,2449.5,2448.9,3.2078]
[1730680299892,3.6498,2449.5,2448.9,3.2078]
[1730680300086,0.36756,2449.4,2449.2,0.36758]
[1730680301991,0.442,2449.5,2448.8,3.2078]
[1730680302190,0.3676,2449.2,2448.7,0.36767]
[1730680302392,0.3676,2449.2,2448.6,5.23539151]
[1730680302594,0.36761,2449.1,2448.6,5.23539151]
[1730680302886,3.2078,2449.3,2448.6,5.23539151]
[1730680303088,0.3676,2449.2,2449.0,0.36761]
[1730680303288,3.57539,2449.3,2449.1,0.36761]
[1730680303489,3.57539,2449.3,2449.1,0.36759]
[1730680303690,3.57539,2449.3,2448.8,3.2078]
[1730680303691,3.57539,2449.3,2449.2,0.36759]
[1730680303889,0.36759,2449.3,2449.2,0.36759]
[1730680304585,0.442,2449.5,2449.0,0.36761]
[1730680304787,0.442,2449.5,2448.8,3.2078]
[1730680304788,0.36762,2449.1,2448.9,0.36763]
[1730680304989,0.4506,2449.0,2448.9,0.36763]
[1730680307998,0.36764,2448.9,2448.8,3.2078]
[1730680308198,0.81823,2449.0,2448.6,1.3122]